bitfinex/quotes_BTCUSD_20260221
["timestamp","ask_amount","ask_price","bid_price","bid_amount"]
[1771663272513,0.31376449,68032.0,68020.0,0.07350772]
[1771663272514,0.19928526,68037.0,68020.0,0.02102163]
[1771663272726,0.19928526,68037.0,68024.0,0.01859257]
[1771663272727,0.14255779,68037.0,68024.0,0.01859257]
[1771663272953,0.14255779,68037.0,68031.0,0.07349516]
[1771663273481,0.14255779,68037.0,68030.0,0.2199149]
[1771663273655,0.14255779,68037.0,68031.0,0.2199149]
[1771663274221,0.14255779,68037.0,68030.0,0.2199149]
[1771663274418,0.14255779,68037.0,68032.0,0.07349449]
[1771663275288,0.0002,68039.0,68033.0,0.07349284]
[1771663275417,0.0001245,68042.0,68031.0,0.02303594]
[1771663275618,0.0001245,68042.0,68036.0,0.07348977]
[1771663276028,0.0001245,68042.0,68033.0,0.02303594]
[1771663276809,0.00024175,68042.0,68036.0,0.0734897]
[1771663278184,0.00044175,68042.0,68037.0,0.07348878]
[1771663278618,0.00044175,68042.0,68036.0,0.0734897]
[1771663278619,0.00016,68050.0,68039.0,0.02303594]
[1771663278820,0.00016,68050.0,68044.0,0.07348153]
[1771663279249,0.00016,68050.0,68045.0,0.07348074]
[1771663280218,0.00016,68050.0,68044.0,0.07348167]
[1771663280930,0.07347316,68054.0,68040.0,0.29394249]
[1771663280931,0.09627937,68056.0,68048.0,0.07347746]
[1771663281145,0.09632531,68056.0,68044.0,0.07348163]
[1771663281527,0.07347165,68054.0,68045.0,0.07348028]
[1771663282297,0.07347233,68053.0,68045.0,0.07348028]
[1771663283439,0.07347233,68053.0,68044.0,0.07348163]
[1771663283641,0.07347358,68052.0,68044.0,0.07348163]
[1771663284678,0.07347433,68051.0,68042.0,0.07348363]
[1771663284828,0.0002,68050.0,68042.0,0.07348363]
[1771663285039,0.0002,68050.0,68043.0,0.07348293]
[1771663288895,0.0002,68050.0,68043.0,0.07348294]
[1771663289501,0.0002,68050.0,68044.0,0.07348167]
[1771663291897,0.0002,68050.0,68045.0,0.07348078]
[1771663292100,0.0002,68050.0,68045.0,0.09651672]
[1771663293540,0.0002,68050.0,68046.0,0.07347966]
[1771663294388,0.0002,68050.0,68045.0,0.07348057]
[1771663295114,0.0002,68050.0,68046.0,0.07347959]
[1771663295778,0.00016,68060.0,68055.0,0.07346998]
[1771663295994,0.00016,68060.0,68049.0,0.02303594]
[1771663296172,0.00016,68060.0,68049.0,0.02308189]
[1771663296382,0.00016,68060.0,68053.0,0.07347152]
[1771663300594,0.00016,68060.0,68050.0,0.07347465]
[1771663300795,0.07346748,68058.0,68049.0,0.09655752]
[1771663301176,0.07346748,68058.0,68049.0,0.07352158]
[1771663301699,0.12018456,68060.0,68051.0,0.07347331]
[1771663304323,0.07346579,68059.0,68051.0,0.07347331]
[1771663305768,0.07346579,68059.0,68052.0,0.17517336]
[1771663307215,0.07346579,68059.0,68053.0,0.17517336]
[1771663312331,0.07346579,68059.0,68054.0,0.17517336]
[1771663313276,0.07346579,68059.0,68054.0,0.17501228]
[1771663314635,0.07366579,68059.0,68054.0,0.17501228]
[1771663318929,0.07346674,68058.0,68054.0,0.17501228]
[1771663319132,0.07346674,68058.0,68049.0,4.595e-05]
[1771663320183,0.07346674,68058.0,68050.0,0.07347525]
[1771663320626,0.07346674,68058.0,68046.0,0.20907675]
[1771663320627,0.02347937,68058.0,68046.0,0.20907675]
[1771663320804,0.02347937,68058.0,68046.0,0.07369867]
[1771663321192,0.02347937,68053.0,68045.0,0.07265822]
[1771663321784,0.02347937,68053.0,68046.0,0.0734797]
[1771663323111,0.02347937,68053.0,68046.0,0.00022]
[1771663323312,0.02347937,68053.0,68046.0,0.07369955]
[1771663326511,0.02347937,68053.0,68047.0,0.07347862]
[1771663326716,0.07346923,68056.0,68047.0,0.07347761]
[1771663327259,0.09694765,68057.0,68047.0,0.0734784]
[1771663327615,0.07346973,68056.0,68047.0,0.0734784]
[1771663329515,0.07347015,68055.0,68047.0,0.0734784]
[1771663330592,0.07347015,68055.0,68047.0,0.0736984]
[1771663334160,0.07346929,68056.0,68048.0,0.07347752]
[1771663334738,0.07366571,68059.0,68052.0,0.02]
[1771663336360,0.07366571,68059.0,68047.0,0.00022]
[1771663336361,0.02388575,68058.0,68047.0,0.00022]
[1771663336652,0.16604232,68057.0,68047.0,0.00022]
[1771663336798,0.09735538,68056.0,68047.0,0.07369824]
[1771663337007,0.07346963,68056.0,68047.0,0.07369824]
[1771663337208,0.02388575,68055.0,68047.0,0.07369824]
[1771663339182,0.02388575,68055.0,68048.0,0.07347728]
[1771663339917,0.02388575,68055.0,68049.0,0.07347641]
[1771663340966,0.07346817,68057.0,68049.0,0.07347641]
[1771663341122,0.09755174,68059.0,68050.0,0.07347447]
[1771663341325,0.02388575,68058.0,68050.0,0.07347447]
[1771663342186,0.0734668,68058.0,68050.0,0.07347447]
[1771663346178,0.07346879,68057.0,68048.0,0.07347683]
[1771663346328,0.02388575,68056.0,68048.0,0.07347683]
[1771663347470,0.09735492,68056.0,68048.0,0.07347683]
[1771663353149,0.02388575,68056.0,68049.0,0.07347624]
[1771663355339,0.02408575,68056.0,68049.0,0.07347624]
[1771663358307,0.02408575,68056.0,68050.0,0.07347455]
[1771663358308,0.0002,68056.0,68050.0,0.07347455]
[1771663358469,3.909e-05,68056.0,68050.0,0.07347455]
[1771663361395,3.909e-05,68056.0,68049.0,0.09347624]
[1771663363914,3.909e-05,68056.0,68049.0,0.09369624]
[1771663366336,3.909e-05,68056.0,68050.0,0.02]
[1771663370089,0.07350802,68056.0,68050.0,0.02]
[1771663372628,3.909e-05,68056.0,68050.0,0.02]
[1771663386400,3.909e-05,68056.0,68050.0,0.02022]
[1771663387654,0.09669026,68060.0,68052.0,0.07347317]
[1771663388702,0.07346571,68059.0,68053.0,0.04485021]
[1771663392448,0.07362484,68060.0,68053.0,0.04485021]
[1771663392665,0.07346249,68062.0,68056.0,0.02]
[1771663392819,0.07357968,68062.0,68056.0,0.02]
[1771663393465,0.07357968,68062.0,68054.0,0.07347066]
[1771663393789,0.07357968,68062.0,68055.0,0.04481021]
[1771663393991,0.02357968,68062.0,68054.0,0.07347066]
[1771663394225,0.02357968,68062.0,68056.0,0.02485021]
[1771663396628,0.24998132,68065.0,68057.0,0.02485021]
[1771663396790,0.07346029,68064.0,68057.0,0.02485021]
[1771663398026,0.07346136,68063.0,68057.0,0.02485021]
[1771663398582,0.07329941,68064.0,68057.0,0.02485021]
[1771663399606,0.07349941,68064.0,68057.0,0.02485021]
[1771663399807,0.07652,68065.0,68059.0,0.02485021]
[1771663400244,0.07345889,68066.0,68059.0,0.02485021]
[1771663400801,0.07345949,68065.0,68059.0,0.02485021]
[1771663404889,0.0001245,68069.0,68059.0,0.02485021]
[1771663405125,0.01948812,68077.0,68060.0,0.00016]
[1771663405401,0.00016,68080.0,68067.0,0.02306546]
[1771663405620,0.00016,68080.0,68060.0,0.20774914]
[1771663405621,0.0736031,68080.0,68072.0,0.02485021]
[1771663406049,0.0002,68077.0,68072.0,0.02485021]
[1771663406299,0.0736031,68080.0,68072.0,0.02485021]
[1771663406451,0.00016,68080.0,68072.0,0.02485021]
[1771663407000,0.02306546,68082.0,68072.0,0.02485021]
[1771663407992,0.04255358,68082.0,68072.0,0.02485021]
[1771663408577,0.07344551,68078.0,68072.0,0.02485021]
[1771663410380,0.07344705,68077.0,68072.0,0.02485021]
[1771663411411,0.07344733,68076.0,68072.0,0.02485021]
[1771663412660,0.07344639,68077.0,68072.0,0.02485021]
[1771663412999,0.07364723,68078.0,68072.0,0.02485021]
[1771663415069,0.0002,68078.0,68072.0,0.09830182]
[1771663415948,0.0002,68078.0,68074.0,0.02485021]
[1771663417451,0.07344025,68083.0,68075.0,0.07344817]
[1771663417691,0.07344025,68083.0,68076.0,0.02485021]
[1771663418093,0.07344119,68082.0,68076.0,0.02485021]
[1771663419306,0.07344119,68082.0,68074.0,0.07344919]
[1771663420070,0.07383188,68082.0,68074.0,0.07344919]
[1771663420260,0.0002,68078.0,68074.0,0.07344919]
[1771663420565,0.0002,68078.0,68074.0,0.0982994]
[1771663420759,0.0002,68078.0,68074.0,0.07344919]
[1771663420967,0.0002,68078.0,68075.0,0.02485021]
[1771663431039,0.0002,68078.0,68074.0,0.00022]
[1771663432770,0.0002,68078.0,68074.0,0.02507021]
[1771663432942,0.29375281,68085.0,68074.0,0.02507021]
[1771663433153,0.30308034,68085.0,68074.0,0.02507021]
[1771663433555,0.07343977,68083.0,68074.0,0.02507021]
[1771663434114,0.31244147,68083.0,68074.0,0.00022]
[1771663434315,0.31244147,68083.0,68060.0,0.47049669]
[1771663434316,0.07345021,68074.0,68065.0,0.07345821]
[1771663434648,0.07345021,68074.0,68064.0,0.07346018]
[1771663434649,0.01867807,68073.0,68066.0,0.07345739]
[1771663434823,0.07344696,68077.0,68068.0,0.07345523]
[1771663435152,0.00016,68080.0,68070.0,0.07345286]
[1771663435309,0.07344447,68079.0,68071.0,0.02485021]
[1771663435516,0.0001245,68083.0,68070.0,0.07345286]
[1771663435517,0.0004167,68085.0,68076.0,0.02485021]
[1771663435518,0.00011714,68085.0,68076.0,0.02485021]
[1771663435720,0.013787,68084.0,68077.0,0.07344622]
[1771663435908,0.00011714,68085.0,68077.0,0.07344622]
[1771663436104,0.0002,68078.0,68077.0,0.07344622]
[1771663438497,0.0002,68078.0,68077.0,0.09829643]
[1771663438916,0.0002,68078.0,68077.0,0.09929643]
[1771663439414,0.0002,68078.0,68077.0,0.09829643]
[1771663439986,0.00011714,68085.0,68077.0,0.09829643]
[1771663444132,0.00031714,68085.0,68077.0,0.09829643]
[1771663444679,0.07375496,68085.0,68077.0,0.09829643]
[1771663445390,0.00031714,68085.0,68078.0,0.07344508]
[1771663445584,0.00031714,68085.0,68079.0,0.02485021]
[1771663445787,0.00031714,68085.0,68077.0,0.07344622]
[1771663448590,0.00031714,68085.0,68078.0,0.07344508]
[1771663451456,0.00031714,68085.0,68075.0,0.09829789]
[1771663451457,0.07375489,68085.0,68077.0,0.07344586]
[1771663452587,0.00031714,68085.0,68078.0,0.07344493]
[1771663452712,0.00031714,68085.0,68077.0,0.09829555]
[1771663453168,0.073755,68085.0,68077.0,0.09829555]
[1771663455384,0.073755,68085.0,68077.0,0.02485021]
[1771663456134,0.29406999,68085.0,68077.0,0.02485021]
[1771663456458,0.07344565,68078.0,68074.0,0.00022]
[1771663457118,0.0734484,68075.0,68074.0,0.00022]
[1771663458207,0.0734484,68075.0,68074.0,1e-08]
[1771663458787,0.19530384,68078.0,68074.0,1e-08]
[1771663458960,0.07344735,68076.0,68075.0,0.02485021]
[1771663459161,0.02344735,68076.0,68075.0,0.02470395]
[1771663459600,0.07344624,68077.0,68075.0,0.02470395]
[1771663460723,0.07344735,68076.0,68075.0,0.02470395]
[1771663461093,0.0734484,68075.0,68074.0,1e-08]
[1771663461971,0.0740849,68075.0,68074.0,1e-08]
[1771663465107,0.07344581,68078.0,68074.0,0.02477709]
[1771663466345,0.07344804,68076.0,68074.0,0.02477709]
[1771663467496,0.0734484,68075.0,68074.0,0.02477709]
[1771663467892,0.07345019,68074.0,68071.0,0.02477708]
[1771663468149,0.01828666,68075.0,68067.0,0.00022]
[1771663468366,0.07345573,68069.0,68067.0,0.00022]
[1771663468587,0.07345502,68069.0,68067.0,0.00022]
[1771663468918,0.07345573,68069.0,68067.0,0.00022]
[1771663470943,0.0734541,68070.0,68067.0,0.00022]
[1771663471857,0.07345491,68069.0,68067.0,7.375e-05]
[1771663472366,0.07345401,68070.0,68067.0,7.375e-05]
[1771663473164,0.07345401,68070.0,68055.0,0.1478]
[1771663473368,0.07345401,68070.0,68062.0,0.07346234]
[1771663473612,0.07345401,68070.0,68062.0,0.07331611]
[1771663473787,0.07345401,68070.0,68062.0,0.09743566]
[1771663475867,0.07345499,68069.0,68062.0,0.02411955]
[1771663476086,0.01828666,68072.0,68062.0,0.02411955]
[1771663476505,0.07345562,68069.0,68062.0,0.02411955]
[1771663479128,0.09182404,68069.0,68061.0,0.0734631]
[1771663479348,0.09182404,68069.0,68062.0,0.00022]
[1771663481317,0.01836842,68069.0,68062.0,0.00022]
[1771663481725,0.09182401,68069.0,68062.0,0.00022]
[1771663486657,0.09202401,68069.0,68062.0,0.00022]
[1771663491738,0.01856842,68069.0,68062.0,0.07368229]
[1771663492441,0.0002,68069.0,68062.0,0.07368229]
[1771663492892,0.073655,68069.0,68062.0,0.00022]
[1771663494109,0.0002,68069.0,68062.0,0.07368237]
[1771663496072,0.01836842,68067.0,68059.0,0.00022]
[1771663496268,0.01836842,68067.0,68057.0,0.000143]
[1771663496269,0.01836842,68062.0,68057.0,0.000143]
[1771663497128,0.01836842,68062.0,68057.0,9.75e-05]
[1771663497486,0.01836842,68062.0,68057.0,0.00048819]
[1771663499368,0.07346277,68062.0,68057.0,0.00048819]
[1771663499596,0.09183241,68061.0,68057.0,0.00048819]
[1771663499824,0.01836842,68061.0,68057.0,0.00048819]
[1771663501160,0.07346254,68062.0,68057.0,0.00048819]
[1771663501411,0.09183096,68062.0,68057.0,0.00048819]
[1771663501826,0.07361452,68070.0,68062.0,0.02414212]
[1771663502116,0.01836842,68078.0,68064.0,0.02414212]
[1771663502117,0.07345169,68072.0,68064.0,0.02414212]
[1771663502271,0.07345292,68071.0,68064.0,0.02414212]
[1771663502476,0.07345386,68070.0,68064.0,0.02414212]
[1771663503147,0.07345584,68069.0,68064.0,0.02414212]
[1771663503352,0.07345614,68068.0,68064.0,0.02414212]
[1771663503499,0.07345708,68067.0,68060.0,0.00016]
[1771663509299,0.02,68065.0,68060.0,0.00016]
[1771663512596,0.07365533,68069.0,68061.0,0.0734631]
[1771663512807,0.07365533,68069.0,68062.0,0.02250371]
[1771663515579,0.07345667,68068.0,68062.0,0.02250371]
[1771663519756,0.07365533,68069.0,68050.0,0.3161905]
[1771663519757,0.02,68067.0,68050.0,0.3161905]
[1771663520100,0.01987786,68059.0,68051.0,0.24995229]
[1771663520293,0.01987786,68059.0,68052.0,0.07381578]
[1771663524757,0.01987786,68059.0,68053.0,0.07369208]
[1771663525412,0.01987786,68059.0,68053.0,0.00022]
[1771663525614,0.01987786,68059.0,68053.0,0.07369206]
[1771663526051,0.07346097,68064.0,68055.0,0.07346906]
[1771663526255,0.09333883,68064.0,68055.0,0.07346906]
[1771663526631,0.07346154,68063.0,68055.0,0.07346906]
[1771663531410,0.0933394,68063.0,68055.0,0.07346906]
[1771663531800,0.07346361,68061.0,68053.0,0.09619555]
[1771663532004,0.01987786,68061.0,68053.0,0.02272371]
[1771663532521,0.09334148,68061.0,68053.0,0.09619557]
[1771663533791,0.09334148,68061.0,68053.0,0.07369186]
[1771663534074,0.01987786,68060.0,68053.0,0.07369186]
[1771663534851,0.0002,68063.0,68053.0,0.00022]
[1771663535051,0.07346918,68056.0,68051.0,0.17648]
[1771663535212,0.07347021,68055.0,68051.0,0.17648]
[1771663535541,0.07346918,68056.0,68049.0,0.00022]
[1771663535542,0.09331152,68054.0,68049.0,0.00022]
[1771663535745,0.07347219,68053.0,68049.0,0.00022]
[1771663535954,0.01984034,68054.0,68049.0,0.00022]
[1771663536163,0.07346957,68056.0,68049.0,0.00022]
[1771663537340,0.09330991,68056.0,68049.0,0.00022]
[1771663538733,0.09191864,68054.0,68046.0,0.07382318]
[1771663540116,0.07347115,68054.0,68049.0,0.00022]
[1771663540348,0.01844749,68053.0,68049.0,0.00022]
[1771663540552,0.01844749,68053.0,68046.0,0.07382318]
[1771663542992,0.01844749,68053.0,68046.0,0.02382318]
[1771663543151,0.09803264,68054.0,68045.0,0.07370007]
[1771663543557,0.09803264,68054.0,68046.0,0.07347944]
[1771663543794,0.07347228,68053.0,68045.0,0.07370007]
[1771663545092,0.07347228,68053.0,68040.0,0.2941017]
[1771663545295,0.09803203,68054.0,68045.0,0.07347971]
[1771663545496,0.09803203,68054.0,68044.0,0.07347971]
[1771663546641,0.09803203,68054.0,68046.0,0.07347935]
[1771663549961,0.0002,68056.0,68040.0,0.00016]
[1771663549962,0.07347831,68048.0,68040.0,0.00016]
[1771663550133,0.0002,68056.0,68045.0,0.04498057]
[1771663550134,0.07347287,68053.0,68045.0,0.04498057]
[1771663550288,0.07347287,68053.0,68046.0,0.02]
[1771663552026,0.07346998,68055.0,68040.0,0.00016]
[1771663552227,0.0734786,68048.0,68040.0,0.00016]
[1771663552430,0.07347869,68047.0,68040.0,0.00016]
[1771663553341,0.07348001,68046.0,68040.0,0.00016]
[1771663553880,0.07348001,68046.0,68040.0,0.00038]
[1771663554497,0.07357177,68046.0,68040.0,0.00038]
[1771663555839,0.07348282,68044.0,68040.0,0.00038]
[1771663557242,0.07348091,68045.0,68040.0,0.00038]
[1771663559660,0.07348186,68044.0,68040.0,0.00038]
[1771663559871,0.07348374,68043.0,68040.0,0.00038]
[1771663560926,0.07348186,68044.0,68040.0,0.00038]
[1771663562117,0.07348301,68043.0,68040.0,0.00038]
[1771663567197,0.07348186,68044.0,68040.0,0.00038]
[1771663567357,0.07348186,68044.0,68040.0,0.11706526]
[1771663567567,1.81602601,68077.0,68040.0,0.11706526]
[1771663567568,0.29388644,68054.0,68041.0,0.0734844]
[1771663567774,0.02347719,68049.0,68041.0,0.00011719]
[1771663567973,0.02347719,68049.0,68042.0,0.11668526]
[1771663569493,0.02347719,68049.0,68042.0,0.10231407]
[1771663569896,0.07347473,68051.0,68042.0,0.10231407]
[1771663570470,0.07347719,68049.0,68042.0,0.10231407]
[1771663570726,0.01944973,68055.0,68042.0,0.10231407]
[1771663570881,0.07347945,68047.0,68042.0,0.10231407]
[1771663573983,0.07367945,68047.0,68042.0,0.10231407]
[1771663575429,0.09326358,68047.0,68042.0,0.10231407]
[1771663577748,0.07347972,68046.0,68042.0,0.10231407]
[1771663581419,0.01978413,68047.0,68042.0,0.10231407]
[1771663582769,0.09326287,68047.0,68042.0,0.10231407]
[1771663588089,0.07367874,68047.0,68042.0,0.10231407]
[1771663588259,0.09326287,68047.0,68042.0,0.10231407]
[1771663590210,0.01958413,68046.0,68042.0,0.10231407]
[1771663590532,0.09306384,68046.0,68042.0,0.10231407]
[1771663594143,0.0002,68047.0,68042.0,0.10231407]
[1771663594464,0.07346777,68058.0,68049.0,0.07347568]
[1771663594576,0.00016,68060.0,68050.0,0.10920697]
[1771663594783,0.01974413,68060.0,68052.0,0.2196125]
[1771663595008,0.07346692,68058.0,68052.0,0.32881947]
[1771663595440,0.07346692,68058.0,68052.0,0.10920697]
[1771663597214,0.01978413,68056.0,68052.0,0.10920697]
[1771663600264,0.0002,68056.0,68052.0,0.10920697]
[1771663600678,0.00016,68060.0,68052.0,0.18267989]
[1771663601617,0.0002,68056.0,68053.0,0.1092538]
[1771663602395,0.01905345,68053.0,68044.0,0.07348116]
[1771663602595,0.01905345,68053.0,68045.0,0.07348049]
[1771663602596,0.01905345,68052.0,68045.0,0.07348049]
[1771663604320,0.07366963,68056.0,68046.0,0.07347888]
[1771663604936,0.07347203,68054.0,68045.0,0.15770892]
[1771663605733,0.0734722,68053.0,68045.0,0.15770892]
[1771663607799,0.0734722,68053.0,68045.0,0.15792892]
[1771663611618,0.07347147,68054.0,68045.0,0.15792892]
[1771663612408,0.07347147,68054.0,68046.0,0.07347949]
[1771663614348,0.07347147,68054.0,68046.0,0.07369949]
[1771663616960,0.09252492,68054.0,68046.0,0.07369949]
[1771663619813,0.09252492,68054.0,68046.0,0.00022]
[1771663620567,0.0734727,68053.0,68046.0,0.00022]
[1771663620761,0.09252492,68054.0,68046.0,0.00022]
[1771663621217,0.09252492,68054.0,68046.0,0.07369944]
[1771663621803,0.0002,68054.0,68046.0,0.07369944]
[1771663622386,0.07367148,68054.0,68047.0,0.21944963]
[1771663622792,0.07347222,68053.0,68047.0,0.21944963]
[1771663623397,0.07347222,68053.0,68048.0,0.21944963]
[1771663623816,0.09252567,68053.0,68048.0,0.21944963]
[1771663624453,0.0002,68054.0,68042.0,0.00022]
[1771663624454,0.07347725,68049.0,68042.0,0.00022]
[1771663626209,0.07347799,68048.0,68042.0,0.00022]
[1771663626420,0.0002,68054.0,68042.0,0.00022]
[1771663626421,0.0734808,68045.0,68042.0,0.00022]
[1771663626826,0.0734808,68045.0,68040.0,0.00038]
[1771663630580,0.0734808,68045.0,68038.0,0.00022]
[1771663630581,0.07348139,68045.0,68038.0,0.00022]
[1771663631131,0.07348186,68044.0,68038.0,0.00022]
[1771663631632,0.07347924,68047.0,68038.0,0.00022]
[1771663631802,0.0734791,68047.0,68039.0,0.07382993]
[1771663632977,0.0734791,68047.0,68039.0,0.0003435]
[1771663635006,0.07347971,68046.0,68039.0,0.0003435]
[1771663635826,0.00016,68050.0,68041.0,0.0894786]
[1771663636154,0.00016,68050.0,68044.0,0.0894786]
[1771663639178,0.0736362,68050.0,68044.0,0.0894786]
[1771663639780,0.0734765,68049.0,68044.0,0.0894786]
[1771663641011,0.07363573,68050.0,68044.0,0.0894786]
[1771663641166,0.00016,68050.0,68044.0,0.0894786]
[1771663641636,0.07363579,68050.0,68044.0,0.0894786]
[1771663642002,0.07383579,68050.0,68044.0,0.0894786]
[1771663643170,0.07383579,68050.0,68042.0,0.07348401]
[1771663643358,0.00036,68050.0,68044.0,0.02801895]
[1771663644320,0.00036,68050.0,68043.0,0.07348283]
[1771663645295,0.00036,68050.0,68042.0,0.02222602]
[1771663647775,0.07383539,68050.0,68042.0,0.02222602]
[1771663647996,0.07347821,68048.0,68041.0,0.00022]
[1771663649168,0.07347821,68048.0,68042.0,0.00022]
[1771663649722,0.00036,68050.0,68042.0,0.00022]
[1771663650130,0.07347941,68047.0,68042.0,0.00022]
[1771663650337,0.00036,68050.0,68042.0,0.00022]
[1771663650583,0.07348145,68045.0,68036.0,0.00022]
[1771663650781,0.07348188,68044.0,68036.0,0.00031176]
[1771663651024,0.07348397,68043.0,68036.0,0.0002468]
[1771663652826,0.07348415,68042.0,68036.0,0.0002468]
[1771663656411,0.07383646,68050.0,68034.0,0.00022]
[1771663656609,0.07348763,68039.0,68034.0,0.08997872]
[1771663656960,0.07348844,68038.0,68034.0,0.08997872]
[1771663657342,0.07348759,68039.0,68034.0,0.08997872]
[1771663658040,0.29393423,68043.0,68034.0,0.00022]
[1771663658041,0.29393813,68042.0,68034.0,0.00022]
[1771663658246,0.00040592,68050.0,68034.0,0.00022]
[1771663658247,0.07348934,68038.0,68034.0,0.00022]
[1771663658450,0.07348934,68038.0,68034.0,0.08997098]
[1771663658853,0.07348748,68039.0,68034.0,0.11070049]
[1771663660154,0.073487,68040.0,68034.0,0.11070049]
[1771663661863,0.07348751,68039.0,68034.0,0.08997098]
[1771663662062,0.0734872,68040.0,68035.0,0.02072951]
[1771663665079,0.0734872,68040.0,68034.0,0.00022]
[1771663665286,0.0734872,68040.0,68031.0,0.07371547]
[1771663665492,0.07348734,68039.0,68031.0,0.07371547]
[1771663666142,0.0001235,68049.0,68027.0,0.17674]
[1771663666143,0.00016,68040.0,68027.0,0.17674]
[1771663666324,0.07349448,68033.0,68027.0,0.17674]
[1771663666459,0.0734951,68032.0,68027.0,0.17674]
[1771663666864,0.29395517,68038.0,68027.0,0.17674]
[1771663667106,0.07349411,68033.0,68027.0,0.17674]
[1771663667903,0.07492338,68033.0,68027.0,0.17674]
[1771663668567,0.07492338,68033.0,68027.0,0.14372782]
[1771663668696,0.07492338,68033.0,68031.0,0.00022]
[1771663669038,0.07475345,68032.0,68027.0,0.14372782]
[1771663670406,0.07349606,68031.0,68027.0,0.14372782]
[1771663675143,0.29397748,68033.0,68024.0,0.00022]
[1771663675341,0.0735011,68027.0,68024.0,0.00022]
[1771663675562,0.0735013,68026.0,68024.0,0.00022]
[1771663676524,0.0735013,68026.0,68025.0,0.00046075]
[1771663676889,0.0735013,68026.0,68025.0,1e-08]
[1771663677050,0.07350238,68025.0,68024.0,1e-08]
[1771663689327,0.07349957,68028.0,68024.0,1e-08]
[1771663689593,0.07349957,68028.0,68026.0,0.05997002]
[1771663689594,0.07349949,68028.0,68026.0,0.05997002]
[1771663689841,0.02066023,68028.0,68026.0,0.05997002]
[1771663690364,0.07350022,68027.0,68024.0,1e-08]
[1771663691343,0.07349942,68028.0,68024.0,1e-08]
[1771663696419,0.07350008,68029.0,68024.0,1e-08]
[1771663700184,0.07349652,68031.0,68024.0,1e-08]
[1771663700387,0.01933629,68040.0,68027.0,0.07349951]
[1771663700589,0.03750262,68034.0,68030.0,0.16616645]
[1771663700902,0.07349188,68035.0,68031.0,0.05989132]
[1771663701112,0.073491,68036.0,68031.0,0.05989132]
[1771663701324,0.01933629,68040.0,68031.0,0.05989132]
[1771663701526,0.0734901,68037.0,68031.0,0.05989132]
[1771663704881,0.07349038,68038.0,68031.0,0.05989132]
[1771663705219,0.07348942,68037.0,68031.0,0.05989132]
[1771663706358,0.0003235,68042.0,68031.0,0.07349576]
[1771663706534,0.0003235,68042.0,68032.0,0.05983407]
[1771663707155,0.0734851,68041.0,68032.0,0.05983407]
[1771663707326,0.0003235,68042.0,68032.0,0.05983407]
[1771663708159,0.0002,68037.0,68032.0,0.05983407]
[1771663708735,0.0002,68037.0,68034.0,0.05980684]
[1771663709618,0.0003235,68042.0,68037.0,0.05978551]
[1771663710344,0.0003235,68042.0,68034.0,0.07349227]
[1771663710345,1.1e-07,68041.0,68038.0,0.04506703]
[1771663711291,1.1e-07,68041.0,68038.0,0.03035006]
[1771663712655,0.07364707,68042.0,68038.0,0.03035006]
[1771663712656,0.07332589,68042.0,68038.0,0.03035006]
[1771663712828,0.07348375,68043.0,68038.0,0.01563309]
[1771663713009,0.09557809,68043.0,68038.0,0.01563309]
[1771663714436,0.09557809,68043.0,68038.0,0.00091612]
[1771663715184,0.02217475,68043.0,68038.0,0.00091612]
[1771663715334,0.0002,68041.0,68038.0,0.00091612]
[1771663715539,0.0002,68041.0,68038.0,0.03306009]
[1771663715738,0.0002,68041.0,68039.0,0.03351815]
[1771663716642,0.0002,68041.0,68039.0,0.01880118]
[1771663717793,0.0002,68041.0,68039.0,0.00408422]
[1771663718987,0.0002,68041.0,68038.0,0.02360319]
[1771663728162,0.0002,68041.0,68038.0,0.02382319]
[1771663731248,0.0002,68041.0,68039.0,0.02360319]
[1771663736432,0.0002,68041.0,68038.0,0.00022]
[1771663738302,0.02229434,68041.0,68038.0,0.00022]
[1771663740750,0.07347924,68047.0,68039.0,0.07348712]
[1771663740969,0.07347924,68047.0,68040.0,0.02360319]
[1771663742054,0.0002,68041.0,68040.0,0.02360319]
[1771663745609,0.02209434,68040.0,68035.0,0.07349095]
[1771663745807,0.02213452,68040.0,68036.0,0.01825433]
[1771663746963,0.02213452,68040.0,68037.0,0.07348937]
[1771663748517,0.02213452,68040.0,68038.0,0.00022]
[1771663748716,4.018e-05,68040.0,68038.0,0.00022]
[1771663750309,4.018e-05,68040.0,68039.0,0.07348726]
[1771663750897,4.018e-05,68040.0,68038.0,0.07370735]
[1771663751097,4.018e-05,68040.0,68038.0,0.09709831]
[1771663751401,4.018e-05,68040.0,68038.0,0.07370735]
[1771663751602,4.018e-05,68040.0,68039.0,0.02339096]
[1771663755801,1.8e-07,68040.0,68039.0,0.02339096]
[1771663756154,1.8e-07,68040.0,68039.0,0.09687822]
[1771663757918,1.8e-07,68040.0,68039.0,0.09787822]
[1771663758142,1.8e-07,68040.0,68039.0,0.09687822]
[1771663758342,1.8e-07,68040.0,68039.0,0.09887822]
[1771663758751,1.8e-07,68040.0,68039.0,0.09787822]
[1771663759093,1.8e-07,68040.0,68039.0,0.09887822]
[1771663759515,1.8e-07,68040.0,68039.0,0.09787822]
[1771663760348,1.8e-07,68040.0,68039.0,0.09887822]
[1771663760551,1.8e-07,68040.0,68039.0,0.09787822]
[1771663761122,1.8e-07,68040.0,68039.0,0.09687822]
[1771663764445,1.8e-07,68040.0,68039.0,0.09787822]
[1771663764623,1.8e-07,68040.0,68039.0,0.09887822]
[1771663765337,0.02093236,68047.0,68040.0,0.07348618]
[1771663775931,0.02113236,68047.0,68040.0,0.07348618]
[1771663779615,0.02113236,68047.0,68041.0,0.07348501]
[1771663779813,0.0002,68047.0,68042.0,0.073484]
[1771663779977,0.0002,68047.0,68041.0,0.07348468]
[1771663780180,0.0002,68047.0,68041.0,0.07348442]
[1771663780494,0.0002,68047.0,68042.0,0.07348326]
[1771663780698,0.0002,68047.0,68043.0,0.023666]
[1771663784788,0.0002,68047.0,68043.0,0.07348291]
[1771663784904,0.0002,68047.0,68044.0,0.023666]
[1771663785110,0.0002,68047.0,68045.0,0.023666]
[1771663785461,0.0001235,68049.0,68043.0,0.09714849]
[1771663785663,0.0002,68054.0,68040.0,0.00038]
[1771663785862,0.0002,68054.0,68046.0,0.07347884]
[1771663786062,0.0002,68054.0,68047.0,0.07347835]
[1771663787325,0.0002,68054.0,68046.0,0.07347884]
[1771663787542,2e-06,68054.0,68046.0,0.07347884]
[1771663787764,2e-06,68054.0,68047.0,0.07347835]
[1771663788265,0.0734732,68054.0,68046.0,0.07347884]
[1771663789179,2e-06,68054.0,68047.0,0.07347828]
[1771663792316,2e-06,68054.0,68046.0,0.07347884]
[1771663792519,2e-06,68054.0,68046.0,0.09714484]
[1771663793600,2e-06,68054.0,68048.0,0.07347666]
[1771663794693,2e-06,68054.0,68047.0,0.07347664]
[1771663796148,2e-06,68054.0,68047.0,0.09714264]
[1771663797381,0.07347334,68054.0,68047.0,0.023666]
[1771663798232,0.07331223,68053.0,68047.0,0.023666]